[Event "Titled Tuesday Blitz January 03 Early 2023"]
[White "Krivonosov, Oleg"]
[Black "Mica, Marek"]
[WhiteFideId "11600349"]
[BlackFideId "382884"]
[WhiteElo "2359"]
[BlackElo "2256"]
[Result "1/2-1/2"]
[Round "10"]
[TimeControl "180+2"]
[Date "2023.01.03"]
[WhiteClock "0:01:26"]
[BlackClock "0:01:15"]

1. Nf3 {[%clk 0:03:00]}  d5 {[%clk 0:02:59]} 2. d4 {[%clk 0:03:00]}  Nf6 {[%clk 0:02:59]} 3. c4 {[%clk 0:03:00]}  e6 {[%clk 0:02:59]} 4. g3 {[%clk 0:03:00]}  dxc4 {[%clk 0:02:59]} 5. Qa4+ {[%clk 0:02:59]}  Nbd7 {[%clk 0:02:54]} 6. Bg2 {[%clk 0:02:58]}  a6 {[%clk 0:02:52]} 7. Nc3 {[%clk 0:02:58]}  Rb8 {[%clk 0:02:51]} 8. Qxc4 {[%clk 0:02:57]}  b5 {[%clk 0:02:51]} 9. Qd3 {[%clk 0:02:58]}  c5 {[%clk 0:02:51]} 10. dxc5 {[%clk 0:02:57]}  Bxc5 {[%clk 0:02:49]} 11. O-O {[%clk 0:02:56]}  Bb7 {[%clk 0:02:47]} 12. Bf4 {[%clk 0:02:56]}  Rc8 {[%clk 0:02:47]} 13. Rad1 {[%clk 0:02:57]}  O-O {[%clk 0:02:44]} 14. Ne5 {[%clk 0:02:56]}  Bxg2 {[%clk 0:02:39]} 15. Kxg2 {[%clk 0:02:57]}  Nxe5 {[%clk 0:02:38]} 16. Bxe5 {[%clk 0:02:58]}  Qe7 {[%clk 0:02:38]} 17. Qf3 {[%clk 0:02:56]}  Nd7 {[%clk 0:02:34]} 18. Bf4 {[%clk 0:02:55]}  Nb6 {[%clk 0:02:29]} 19. Ne4 {[%clk 0:02:52]}  e5 {[%clk 0:02:05]} 20. Bg5 {[%clk 0:02:46]}  f6 {[%clk 0:02:05]} 21. Nxc5 {[%clk 0:02:45]}  Qxc5 {[%clk 0:02:04]} 22. Be3 {[%clk 0:02:42]}  Qc6 {[%clk 0:02:04]} 23. Qxc6 {[%clk 0:02:34]}  Rxc6 {[%clk 0:02:05]} 24. Bxb6 {[%clk 0:02:34]}  Rxb6 {[%clk 0:02:04]} 25. Rd7 {[%clk 0:02:31]}  Rf7 {[%clk 0:02:04]} 26. Rd8+ {[%clk 0:02:29]}  Rf8 {[%clk 0:02:04]} 27. Rfd1 {[%clk 0:02:29]}  Rxd8 {[%clk 0:02:02]} 28. Rxd8+ {[%clk 0:02:28]}  Kf7 {[%clk 0:02:02]} 29. Rd7+ {[%clk 0:02:28]}  Kg6 {[%clk 0:02:02]} 30. e4 {[%clk 0:02:16]}  Rc6 {[%clk 0:02:02]} 31. Rd2 {[%clk 0:02:15]}  Kf7 {[%clk 0:02:00]} 32. Kf3 {[%clk 0:02:13]}  Ke6 {[%clk 0:01:59]} 33. Ke3 {[%clk 0:02:13]}  Rd6 {[%clk 0:01:58]} 34. Rc2 {[%clk 0:02:11]}  Kd7 {[%clk 0:01:58]} 35. f4 {[%clk 0:02:06]}  Rc6 {[%clk 0:01:57]} 36. Rd2+ {[%clk 0:02:04]}  Rd6 {[%clk 0:01:57]} 37. Rf2 {[%clk 0:02:03]}  exf4+ {[%clk 0:01:51]} 38. gxf4 {[%clk 0:02:02]}  Rd1 {[%clk 0:01:48]} 39. Rd2+ {[%clk 0:01:54]}  Rxd2 {[%clk 0:01:47]} 40. Kxd2 {[%clk 0:01:55]}  g5 {[%clk 0:01:38]} 41. Ke3 {[%clk 0:01:53]}  Ke6 {[%clk 0:01:37]} 42. b4 {[%clk 0:01:52]}  h5 {[%clk 0:01:34]} 43. h3 {[%clk 0:01:51]}  g4 {[%clk 0:01:28]} 44. Kf2 {[%clk 0:01:41]}  f5 {[%clk 0:01:25]} 45. hxg4 {[%clk 0:01:32]}  fxg4 {[%clk 0:01:21]} 46. Kg3 {[%clk 0:01:31]}  Kf6 {[%clk 0:01:18]} 47. Kh4 {[%clk 0:01:30]}  Ke6 {[%clk 0:01:15]} 48. Kg3 {[%clk 0:01:26]}  Kf6 {[%clk 0:01:15]} 49. Kh4 {[%clk 0:01:26]}  Ke6 {[%clk 0:01:15]} 50. Kg3 {[%clk 0:01:26]} 1/2-1/2


[Site "https://www.chess.com"]

[Event "Titled Tuesday Blitz January 03 Early 2023"]
[White "Leiva, Gianmarco"]
[Black "Rangel, Daniel"]
[WhiteFideId "3804399"]
[BlackFideId "2124475"]
[WhiteElo "2392"]
[BlackElo "2207"]
[Result "1-0"]
[Round "10"]
[TimeControl "180+2"]
[Date "2023.01.03"]
[WhiteClock "0:00:28"]
[BlackClock "0:00:07"]

1. e4 {[%clk 0:02:52]}  c5 {[%clk 0:02:51]} 2. Nf3 {[%clk 0:02:51]}  g6 {[%clk 0:02:49]} 3. c3 {[%clk 0:02:50]}  Bg7 {[%clk 0:02:44]} 4. d4 {[%clk 0:02:50]}  cxd4 {[%clk 0:02:45]} 5. cxd4 {[%clk 0:02:48]}  d5 {[%clk 0:02:44]} 6. e5 {[%clk 0:02:47]}  Bg4 {[%clk 0:02:44]} 7. Nbd2 {[%clk 0:02:38]}  e6 {[%clk 0:02:42]} 8. h3 {[%clk 0:02:35]}  Bxf3 {[%clk 0:02:42]} 9. Bb5+ {[%clk 0:02:35]}  Nc6 {[%clk 0:02:39]} 10. Bxc6+ {[%clk 0:02:35]}  bxc6 {[%clk 0:02:40]} 11. Nxf3 {[%clk 0:02:30]}  Ne7 {[%clk 0:02:40]} 12. O-O {[%clk 0:02:29]}  O-O {[%clk 0:02:41]} 13. b3 {[%clk 0:02:27]}  Qa5 {[%clk 0:02:31]} 14. Bd2 {[%clk 0:02:18]}  Qb6 {[%clk 0:02:28]} 15. Rc1 {[%clk 0:02:11]}  Rfc8 {[%clk 0:02:27]} 16. Rc5 {[%clk 0:02:07]}  Nf5 {[%clk 0:02:26]} 17. Ba5 {[%clk 0:02:05]}  Qa6 {[%clk 0:02:18]} 18. Qc2 {[%clk 0:02:02]}  Bf8 {[%clk 0:02:14]} 19. Bb4 {[%clk 0:02:01]}  Bxc5 {[%clk 0:02:08]} 20. Bxc5 {[%clk 0:02:02]}  Qb7 {[%clk 0:02:06]} 21. g4 {[%clk 0:02:02]}  Ng7 {[%clk 0:02:02]} 22. Qd2 {[%clk 0:02:01]}  Ne8 {[%clk 0:01:53]} 23. Qg5 {[%clk 0:01:47]}  Kg7 {[%clk 0:01:43]} 24. Re1 {[%clk 0:01:40]}  h6 {[%clk 0:01:41]} 25. Qf4 {[%clk 0:01:40]}  Qd7 {[%clk 0:01:34]} 26. h4 {[%clk 0:01:39]}  Qd8 {[%clk 0:01:34]} 27. Kg2 {[%clk 0:01:28]}  Rc7 {[%clk 0:01:30]} 28. Bb4 {[%clk 0:01:18]}  a5 {[%clk 0:01:27]} 29. Bd2 {[%clk 0:01:18]}  Qe7 {[%clk 0:00:59]} 30. Qxh6+ {[%clk 0:01:18]}  Kg8 {[%clk 0:01:00]} 31. Ng5 {[%clk 0:01:16]}  f6 {[%clk 0:00:52]} 32. Qxg6+ {[%clk 0:01:12]}  Qg7 {[%clk 0:00:51]} 33. Qxg7+ {[%clk 0:01:11]}  Rxg7 {[%clk 0:00:50]} 34. exf6 {[%clk 0:01:07]}  Nxf6 {[%clk 0:00:49]} 35. f3 {[%clk 0:01:07]}  Re7 {[%clk 0:00:37]} 36. Rxe6 {[%clk 0:01:02]}  Rxe6 {[%clk 0:00:32]} 37. Nxe6 {[%clk 0:01:03]}  a4 {[%clk 0:00:30]} 38. b4 {[%clk 0:00:51]}  a3 {[%clk 0:00:26]} 39. Kg3 {[%clk 0:00:50]}  Ne8 {[%clk 0:00:23]} 40. g5 {[%clk 0:00:49]}  Nd6 {[%clk 0:00:23]} 41. Kg4 {[%clk 0:00:46]}  Nc4 {[%clk 0:00:22]} 42. Bf4 {[%clk 0:00:37]}  Nb2 {[%clk 0:00:20]} 43. g6 {[%clk 0:00:34]}  Nd3 {[%clk 0:00:20]} 44. h5 {[%clk 0:00:34]}  Re8 {[%clk 0:00:12]} 45. Kf5 {[%clk 0:00:28]}  Rxe6 {[%clk 0:00:12]} 46. Kxe6 {[%clk 0:00:28]}  Nxf4+ {[%clk 0:00:12]} 47. Kd6 {[%clk 0:00:29]}  Nxh5 {[%clk 0:00:12]} 48. Kxc6 {[%clk 0:00:29]}  Nf4 {[%clk 0:00:12]} 49. b5 {[%clk 0:00:29]}  Ne6 {[%clk 0:00:06]} 50. Kxd5 {[%clk 0:00:28]}  Nxd4 {[%clk 0:00:07]} 51. Kxd4 {[%clk 0:00:28]} 1-0


[Site "https://www.chess.com"]

[Event "Titled Tuesday Blitz January 03 Early 2023"]
[White "Mohammed, Zozek Salah Mohammed"]
[Black "Skliarov, Viktor"]
[WhiteFideId "4803361"]
[BlackFideId "14106736"]
[WhiteElo "2210"]
[BlackElo "2383"]
[Result "0-1"]
[Round "10"]
[TimeControl "180+2"]
[Date "2023.01.03"]
[WhiteClock "0:01:51"]
[BlackClock "0:02:07"]

1. d4 {[%clk 0:02:57]}  Nf6 {[%clk 0:02:59]} 2. Nf3 {[%clk 0:02:58]}  g6 {[%clk 0:02:59]} 3. g3 {[%clk 0:02:58]}  Bg7 {[%clk 0:03:00]} 4. Bg2 {[%clk 0:02:59]}  O-O {[%clk 0:03:01]} 5. O-O {[%clk 0:02:59]}  c6 {[%clk 0:03:01]} 6. c4 {[%clk 0:02:59]}  d5 {[%clk 0:03:02]} 7. cxd5 {[%clk 0:02:53]}  cxd5 {[%clk 0:03:02]} 8. Ne5 {[%clk 0:02:52]}  Nfd7 {[%clk 0:03:02]} 9. Nf3 {[%clk 0:02:49]}  Nc6 {[%clk 0:03:00]} 10. Nc3 {[%clk 0:02:48]}  Nb6 {[%clk 0:02:59]} 11. Bf4 {[%clk 0:02:44]}  Bf5 {[%clk 0:02:58]} 12. Ne5 {[%clk 0:02:38]}  Nxe5 {[%clk 0:02:56]} 13. dxe5 {[%clk 0:02:38]}  e6 {[%clk 0:02:53]} 14. e4 {[%clk 0:02:31]}  dxe4 {[%clk 0:02:48]} 15. Nxe4 {[%clk 0:02:29]}  Nc4 {[%clk 0:02:23]} 16. Nd6 {[%clk 0:02:18]}  Nxd6 {[%clk 0:02:19]} 17. exd6 {[%clk 0:02:17]}  Bxb2 {[%clk 0:02:20]} 18. Bxb7 {[%clk 0:02:08]}  Rb8 {[%clk 0:02:12]} 19. Bf3 {[%clk 0:02:00]}  e5 {[%clk 0:02:12]} 20. Bh6 {[%clk 0:01:57]}  Re8 {[%clk 0:02:11]} 21. Bc6 {[%clk 0:01:51]}  Re6 {[%clk 0:02:07]} 0-1


[Site "https://www.chess.com"]

[Event "Titled Tuesday Blitz January 03 Early 2023"]
[White "Cnejev, Vladimir-Alexandru"]
[Black "Krienke, Makaio"]
[WhiteFideId "1260898"]
[BlackFideId "2038854"]
[WhiteElo "2374"]
[BlackElo "2115"]
[Result "1/2-1/2"]
[Round "10"]
[TimeControl "180+2"]
[Date "2023.01.03"]
[WhiteClock "0:00:03"]
[BlackClock "0:00:20"]

1. e4 {[%clk 0:03:00]}  e5 {[%clk 0:02:59]} 2. Nf3 {[%clk 0:03:00]}  Nc6 {[%clk 0:03:00]} 3. Bb5 {[%clk 0:03:00]}  a6 {[%clk 0:03:00]} 4. Ba4 {[%clk 0:03:00]}  Nf6 {[%clk 0:03:00]} 5. O-O {[%clk 0:03:00]}  b5 {[%clk 0:02:59]} 6. Bb3 {[%clk 0:03:00]}  Be7 {[%clk 0:02:58]} 7. Re1 {[%clk 0:03:00]}  O-O {[%clk 0:02:57]} 8. c3 {[%clk 0:03:01]}  d6 {[%clk 0:02:55]} 9. h3 {[%clk 0:03:01]}  Na5 {[%clk 0:02:55]} 10. Bc2 {[%clk 0:03:00]}  c5 {[%clk 0:02:55]} 11. d4 {[%clk 0:03:01]}  cxd4 {[%clk 0:02:55]} 12. cxd4 {[%clk 0:03:02]}  Nc6 {[%clk 0:02:50]} 13. Nc3 {[%clk 0:03:00]}  Bb7 {[%clk 0:02:43]} 14. d5 {[%clk 0:03:00]}  Nb8 {[%clk 0:02:43]} 15. Ne2 {[%clk 0:02:46]}  Nbd7 {[%clk 0:02:43]} 16. Ng3 {[%clk 0:02:42]}  Re8 {[%clk 0:02:43]} 17. Rf1 {[%clk 0:02:40]}  Rc8 {[%clk 0:02:39]} 18. Nh2 {[%clk 0:02:40]}  Qc7 {[%clk 0:02:35]} 19. Bd3 {[%clk 0:02:40]}  Nc5 {[%clk 0:02:35]} 20. Bb1 {[%clk 0:02:30]}  Na4 {[%clk 0:02:35]} 21. Bd3 {[%clk 0:02:19]}  Nc5 {[%clk 0:02:34]} 22. Bb1 {[%clk 0:02:19]}  Na4 {[%clk 0:02:34]} 23. Qe2 {[%clk 0:02:19]}  Bf8 {[%clk 0:02:14]} 24. Be3 {[%clk 0:02:16]}  g6 {[%clk 0:01:57]} 25. Bd3 {[%clk 0:02:16]}  Nc5 {[%clk 0:01:55]} 26. Bc2 {[%clk 0:02:16]}  Bg7 {[%clk 0:01:55]} 27. Rac1 {[%clk 0:02:16]}  Qb8 {[%clk 0:01:49]} 28. Ng4 {[%clk 0:02:16]}  Nxg4 {[%clk 0:01:49]} 29. hxg4 {[%clk 0:02:17]}  h6 {[%clk 0:01:46]} 30. f3 {[%clk 0:02:14]}  b4 {[%clk 0:01:40]} 31. Qd2 {[%clk 0:02:13]}  a5 {[%clk 0:01:40]} 32. Bxh6 {[%clk 0:02:12]}  Ba6 {[%clk 0:01:39]} 33. Rfe1 {[%clk 0:01:56]}  a4 {[%clk 0:01:37]} 34. Nf5 {[%clk 0:01:34]}  Bf6 {[%clk 0:01:32]} 35. Bg5 {[%clk 0:01:22]}  gxf5 {[%clk 0:01:20]} 36. Bxf6 {[%clk 0:01:20]}  f4 {[%clk 0:01:20]} 37. g3 {[%clk 0:01:00]}  Qb6 {[%clk 0:01:20]} 38. Kg2 {[%clk 0:00:58]}  Nd7 {[%clk 0:01:20]} 39. g5 {[%clk 0:00:52]}  b3 {[%clk 0:01:14]} 40. axb3 {[%clk 0:00:50]}  axb3 {[%clk 0:01:15]} 41. Bb1 {[%clk 0:00:43]}  Nxf6 {[%clk 0:01:00]} 42. gxf6 {[%clk 0:00:42]}  Qd8 {[%clk 0:00:58]} 43. gxf4 {[%clk 0:00:18]}  Qxf6 {[%clk 0:00:56]} 44. fxe5 {[%clk 0:00:19]}  dxe5 {[%clk 0:00:42]} 45. Rxc8 {[%clk 0:00:18]}  Rxc8 {[%clk 0:00:36]} 46. Rg1 {[%clk 0:00:17]}  Kf8 {[%clk 0:00:25]} 47. Qb4+ {[%clk 0:00:16]}  Ke8 {[%clk 0:00:26]} 48. Qa4+ {[%clk 0:00:16]}  Kf8 {[%clk 0:00:23]} 49. Qxb3 {[%clk 0:00:12]}  Qg5+ {[%clk 0:00:23]} 50. Kf2 {[%clk 0:00:09]}  Qd2+ {[%clk 0:00:23]} 51. Kg3 {[%clk 0:00:09]}  Qg5+ {[%clk 0:00:22]} 52. Kf2 {[%clk 0:00:09]}  Qd2+ {[%clk 0:00:21]} 53. Kg3 {[%clk 0:00:09]}  Qg5+ {[%clk 0:00:20]} 54. Kf2 {[%clk 0:00:03]} 1/2-1/2


[Site "https://www.chess.com"]

[Event "Titled Tuesday Blitz January 03 Early 2023"]
[White "Guliev, Logman"]
[Black "Mendez Fortes, Eduardo Jesus"]
[WhiteFideId "13400061"]
[BlackFideId "3502376"]
[WhiteElo "2250"]
[BlackElo "2250"]
[Result "0-1"]
[Round "10"]
[TimeControl "180+2"]
[Date "2023.01.03"]
[WhiteClock "0:00:07"]
[BlackClock "0:01:19"]

1. e4 {[%clk 0:03:00]}  e5 {[%clk 0:02:59]} 2. Nf3 {[%clk 0:02:59]}  Nc6 {[%clk 0:03:00]} 3. Bb5 {[%clk 0:02:58]}  Nf6 {[%clk 0:03:01]} 4. d3 {[%clk 0:02:57]}  Bc5 {[%clk 0:03:01]} 5. O-O {[%clk 0:02:56]}  d6 {[%clk 0:03:01]} 6. Nbd2 {[%clk 0:02:56]}  O-O {[%clk 0:03:01]} 7. Bxc6 {[%clk 0:02:52]}  bxc6 {[%clk 0:03:02]} 8. h3 {[%clk 0:02:53]}  Bb6 {[%clk 0:03:02]} 9. Nc4 {[%clk 0:02:51]}  c5 {[%clk 0:03:02]} 10. Bg5 {[%clk 0:02:49]}  h6 {[%clk 0:03:02]} 11. Bxf6 {[%clk 0:02:48]}  Qxf6 {[%clk 0:03:03]} 12. Ne3 {[%clk 0:02:44]}  c6 {[%clk 0:03:03]} 13. c4 {[%clk 0:02:44]}  Bd8 {[%clk 0:02:58]} 14. Nh2 {[%clk 0:02:40]}  Qg6 {[%clk 0:02:55]} 15. Kh1 {[%clk 0:02:37]}  Rb8 {[%clk 0:02:53]} 16. b3 {[%clk 0:02:37]}  Bg5 {[%clk 0:02:50]} 17. Qe2 {[%clk 0:02:35]}  h5 {[%clk 0:02:48]} 18. Nf3 {[%clk 0:02:27]}  Be7 {[%clk 0:02:43]} 19. Nh2 {[%clk 0:02:12]}  Kh8 {[%clk 0:02:40]} 20. Rg1 {[%clk 0:02:09]}  Bg5 {[%clk 0:02:39]} 21. Nhf1 {[%clk 0:02:09]}  Be6 {[%clk 0:02:34]} 22. Ng3 {[%clk 0:02:08]}  h4 {[%clk 0:02:28]} 23. Ngf5 {[%clk 0:02:09]}  Qh7 {[%clk 0:02:26]} 24. Nxd6 {[%clk 0:02:06]}  g6 {[%clk 0:02:19]} 25. b4 {[%clk 0:01:47]}  Rxb4 {[%clk 0:02:14]} 26. Rab1 {[%clk 0:01:47]}  Rfb8 {[%clk 0:02:12]} 27. Rxb4 {[%clk 0:01:37]}  Rxb4 {[%clk 0:02:13]} 28. a3 {[%clk 0:01:37]}  Rb8 {[%clk 0:02:10]} 29. Qf3 {[%clk 0:00:49]}  Be7 {[%clk 0:02:01]} 30. Ndf5 {[%clk 0:00:49]}  gxf5 {[%clk 0:01:57]} 31. exf5 {[%clk 0:00:50]}  Bd7 {[%clk 0:01:57]} 32. f6 {[%clk 0:00:50]}  Bf8 {[%clk 0:01:56]} 33. Ng4 {[%clk 0:00:35]}  Re8 {[%clk 0:01:54]} 34. Qe3 {[%clk 0:00:25]}  Bxg4 {[%clk 0:01:49]} 35. hxg4 {[%clk 0:00:23]}  Qg6 {[%clk 0:01:49]} 36. g5 {[%clk 0:00:23]}  e4 {[%clk 0:01:44]} 37. f3 {[%clk 0:00:21]}  Re5 {[%clk 0:01:40]} 38. f4 {[%clk 0:00:18]}  Re6 {[%clk 0:01:40]} 39. dxe4 {[%clk 0:00:15]}  Rxe4 {[%clk 0:01:36]} 40. Qf3 {[%clk 0:00:14]}  Qf5 {[%clk 0:01:32]} 41. Rf1 {[%clk 0:00:13]}  Rxc4 {[%clk 0:01:26]} 42. Qh5+ {[%clk 0:00:11]}  Kg8 {[%clk 0:01:26]} 43. Qe2 {[%clk 0:00:10]}  Rxf4 {[%clk 0:01:23]} 44. Rg1 {[%clk 0:00:07]}  Qxg5 {[%clk 0:01:19]} 0-1


[Site "https://www.chess.com"]

[Event "Titled Tuesday Blitz January 03 Early 2023"]
[White "Pandey Srishti"]
[Black "Padmini, Rout"]
[WhiteFideId "35093290"]
[BlackFideId "5029295"]
[WhiteElo "2188"]
[BlackElo "2375"]
[Result "0-1"]
[Round "10"]
[TimeControl "180+2"]
[Date "2023.01.03"]
[WhiteClock "0:00:08"]
[BlackClock "0:00:48"]

1. d4 {[%clk 0:03:00]}  Nf6 {[%clk 0:02:55]} 2. c4 {[%clk 0:03:00]}  e6 {[%clk 0:02:55]} 3. Nf3 {[%clk 0:02:58]}  d5 {[%clk 0:02:54]} 4. Nc3 {[%clk 0:02:57]}  Bd6 {[%clk 0:02:54]} 5. g3 {[%clk 0:02:52]}  O-O {[%clk 0:02:53]} 6. Bg2 {[%clk 0:02:51]}  h6 {[%clk 0:02:53]} 7. O-O {[%clk 0:02:50]}  c6 {[%clk 0:02:51]} 8. b3 {[%clk 0:02:50]}  Nbd7 {[%clk 0:02:51]} 9. Bb2 {[%clk 0:02:49]}  Qe7 {[%clk 0:02:49]} 10. Nd2 {[%clk 0:02:39]}  Bb4 {[%clk 0:02:11]} 11. e4 {[%clk 0:02:35]}  dxe4 {[%clk 0:02:12]} 12. Ndxe4 {[%clk 0:02:34]}  Nxe4 {[%clk 0:02:12]} 13. Nxe4 {[%clk 0:02:35]}  Nf6 {[%clk 0:02:12]} 14. a3 {[%clk 0:02:25]}  Nxe4 {[%clk 0:02:08]} 15. axb4 {[%clk 0:02:25]}  Nf6 {[%clk 0:02:06]} 16. b5 {[%clk 0:02:24]}  cxb5 {[%clk 0:02:01]} 17. cxb5 {[%clk 0:02:21]}  Rd8 {[%clk 0:02:01]} 18. Qe2 {[%clk 0:02:17]}  Nd5 {[%clk 0:01:58]} 19. Ba3 {[%clk 0:02:14]}  Qd7 {[%clk 0:01:53]} 20. Rfc1 {[%clk 0:02:14]}  b6 {[%clk 0:01:52]} 21. Qe5 {[%clk 0:01:33]}  Bb7 {[%clk 0:01:51]} 22. Bxd5 {[%clk 0:01:22]}  Qxd5 {[%clk 0:01:44]} 23. Qxd5 {[%clk 0:01:22]}  Bxd5 {[%clk 0:01:42]} 24. Rc7 {[%clk 0:01:21]}  a6 {[%clk 0:01:42]} 25. Be7 {[%clk 0:01:16]}  axb5 {[%clk 0:01:41]} 26. Rac1 {[%clk 0:01:10]}  Re8 {[%clk 0:01:38]} 27. b4 {[%clk 0:01:10]}  Ra2 {[%clk 0:01:33]} 28. h4 {[%clk 0:00:49]}  h5 {[%clk 0:01:32]} 29. Bg5 {[%clk 0:00:46]}  Rea8 {[%clk 0:01:31]} 30. Rc8+ {[%clk 0:00:42]}  Rxc8 {[%clk 0:01:30]} 31. Rxc8+ {[%clk 0:00:43]}  Kh7 {[%clk 0:01:31]} 32. Rc1 {[%clk 0:00:43]}  Kg6 {[%clk 0:01:30]} 33. Bd8 {[%clk 0:00:42]}  Rb2 {[%clk 0:01:24]} 34. Bxb6 {[%clk 0:00:37]}  Rxb4 {[%clk 0:01:24]} 35. Kf1 {[%clk 0:00:27]}  Rb2 {[%clk 0:01:24]} 36. Bc5 {[%clk 0:00:20]}  b4 {[%clk 0:01:23]} 37. Re1 {[%clk 0:00:18]}  b3 {[%clk 0:01:20]} 38. Re5 {[%clk 0:00:18]}  Rb1+ {[%clk 0:01:14]} 39. Ke2 {[%clk 0:00:16]}  b2 {[%clk 0:01:11]} 40. Rg5+ {[%clk 0:00:15]}  Kf6 {[%clk 0:01:04]} 41. Bb6 {[%clk 0:00:11]}  Ke7 {[%clk 0:00:53]} 42. Rxg7 {[%clk 0:00:09]}  Rc1 {[%clk 0:00:49]} 43. Bc5+ {[%clk 0:00:07]}  Rxc5 {[%clk 0:00:48]} 44. dxc5 {[%clk 0:00:08]} 0-1


[Site "https://www.chess.com"]

[Event "Titled Tuesday Blitz January 03 Early 2023"]
[White "Iljin, Timofey"]
[Black "Kaminski, Victor"]
[WhiteFideId "14110180"]
[BlackFideId "1131630"]
[WhiteElo "2329"]
[BlackElo "2247"]
[Result "0-1"]
[Round "10"]
[TimeControl "180+2"]
[Date "2023.01.03"]
[WhiteClock "0:00:12"]
[BlackClock "0:00:17"]

1. d4 {[%clk 0:03:00]}  Nf6 {[%clk 0:02:59]} 2. c4 {[%clk 0:03:00]}  e6 {[%clk 0:02:59]} 3. Nc3 {[%clk 0:03:01]}  Bb4 {[%clk 0:02:57]} 4. e3 {[%clk 0:03:01]}  O-O {[%clk 0:02:55]} 5. a3 {[%clk 0:03:02]}  Bxc3+ {[%clk 0:02:54]} 6. bxc3 {[%clk 0:03:03]}  d6 {[%clk 0:02:46]} 7. Bd3 {[%clk 0:03:03]}  e5 {[%clk 0:02:46]} 8. e4 {[%clk 0:03:03]}  c5 {[%clk 0:02:44]} 9. Ne2 {[%clk 0:03:03]}  Nc6 {[%clk 0:02:42]} 10. O-O {[%clk 0:03:02]}  b6 {[%clk 0:02:40]} 11. Bg5 {[%clk 0:03:02]}  h6 {[%clk 0:02:39]} 12. Bh4 {[%clk 0:03:03]}  g5 {[%clk 0:02:33]} 13. Bg3 {[%clk 0:03:03]}  Nh5 {[%clk 0:02:33]} 14. f4 {[%clk 0:02:44]}  Nxg3 {[%clk 0:02:20]} 15. hxg3 {[%clk 0:02:37]}  cxd4 {[%clk 0:02:18]} 16. cxd4 {[%clk 0:02:36]}  Bg4 {[%clk 0:02:17]} 17. d5 {[%clk 0:02:16]}  Nd4 {[%clk 0:02:13]} 18. fxe5 {[%clk 0:02:16]}  dxe5 {[%clk 0:01:58]} 19. Qe1 {[%clk 0:01:59]}  Bxe2 {[%clk 0:01:56]} 20. Bxe2 {[%clk 0:02:00]}  Nc2 {[%clk 0:01:54]} 21. Qc3 {[%clk 0:02:00]}  Nxa1 {[%clk 0:01:54]} 22. Qxe5 {[%clk 0:01:45]}  Nb3 {[%clk 0:01:44]} 23. Rf6 {[%clk 0:01:43]}  Re8 {[%clk 0:00:41]} 24. Qc3 {[%clk 0:01:18]}  Nc5 {[%clk 0:00:32]} 25. Rxh6 {[%clk 0:01:18]}  f6 {[%clk 0:00:29]} 26. Rg6+ {[%clk 0:00:49]}  Kh7 {[%clk 0:00:27]} 27. Rxf6 {[%clk 0:00:42]}  Qe7 {[%clk 0:00:09]} 28. Bg4 {[%clk 0:00:33]}  Qe5 {[%clk 0:00:06]} 29. Qf3 {[%clk 0:00:26]}  Re7 {[%clk 0:00:02]} 30. Bf5+ {[%clk 0:00:22]}  Kh8 {[%clk 0:00:02]} 31. Qh5+ {[%clk 0:00:21]}  Kg8 {[%clk 0:00:01]} 32. Rg6+ {[%clk 0:00:15]}  Rg7 {[%clk 0:00:01]} 33. Qxg5 {[%clk 0:00:12]}  Qd4+ {[%clk 0:00:02]} 34. Kh2 {[%clk 0:00:12]}  Rf8 {[%clk 0:00:02]} 35. Be6+ {[%clk 0:00:11]}  Nxe6 {[%clk 0:00:02]} 36. dxe6 {[%clk 0:00:12]}  Qe3 {[%clk 0:00:02]} 37. Qxe3 {[%clk 0:00:11]}  Rxg6 {[%clk 0:00:03]} 38. e7 {[%clk 0:00:12]}  Re8 {[%clk 0:00:03]} 39. e5 {[%clk 0:00:12]}  Re6 {[%clk 0:00:04]} 40. Qe4 {[%clk 0:00:12]}  R8xe7 {[%clk 0:00:04]} 41. Qd5 {[%clk 0:00:12]}  Kf7 {[%clk 0:00:05]} 42. g4 {[%clk 0:00:12]}  Kg7 {[%clk 0:00:05]} 43. Qd4 {[%clk 0:00:09]}  Rxe5 {[%clk 0:00:06]} 44. a4 {[%clk 0:00:08]}  Kg6 {[%clk 0:00:07]} 45. Qf4 {[%clk 0:00:07]}  Rc5 {[%clk 0:00:07]} 46. Qe4+ {[%clk 0:00:07]}  Rxe4 {[%clk 0:00:07]} 47. Kh3 {[%clk 0:00:01]}  Rexc4 {[%clk 0:00:08]} 48. a5 {[%clk 0:00:02]}  Ra4 {[%clk 0:00:09]} 49. a6 {[%clk 0:00:01]}  Rc3+ {[%clk 0:00:09]} 50. Kh4 {[%clk 0:00:02]}  Rcc4 {[%clk 0:00:09]} 51. g3 {[%clk 0:00:03]}  Rxg4+ {[%clk 0:00:09]} 52. Kh3 {[%clk 0:00:04]}  Rxg3+ {[%clk 0:00:10]} 53. Kxg3 {[%clk 0:00:03]}  Rxa6 {[%clk 0:00:11]} 54. Kf4 {[%clk 0:00:03]}  Ra5 {[%clk 0:00:12]} 55. Ke4 {[%clk 0:00:04]}  Rc5 {[%clk 0:00:12]} 56. Kd4 {[%clk 0:00:05]}  a5 {[%clk 0:00:13]} 57. Kd3 {[%clk 0:00:06]}  a4 {[%clk 0:00:14]} 58. Kd4 {[%clk 0:00:07]}  a3 {[%clk 0:00:15]} 59. Kd3 {[%clk 0:00:08]}  a2 {[%clk 0:00:16]} 60. Kd4 {[%clk 0:00:09]}  a1=Q+ {[%clk 0:00:14]} 61. Kd3 {[%clk 0:00:10]}  Qa4 {[%clk 0:00:14]} 62. Kd2 {[%clk 0:00:10]}  Rb5 {[%clk 0:00:15]} 63. Kc3 {[%clk 0:00:10]}  Rb3+ {[%clk 0:00:15]} 64. Kc2 {[%clk 0:00:11]}  Qa2+ {[%clk 0:00:16]} 65. Kc1 {[%clk 0:00:12]}  Rb1# {[%clk 0:00:17]} 0-1


[Site "https://www.chess.com"]